bitfinex/quotes_SOLUSD_20250410
["timestamp","ask_amount","ask_price","bid_price","bid_amount"]
[1744280370690,41.20187764,113.92,113.91,16.6944006]
[1744280371209,23.54393008,113.92,113.91,16.6944006]
[1744280372211,23.54393008,113.92,113.88,24.6944006]
[1744280372394,41.6823484,113.92,113.91,16.6944006]
[1744280372707,41.1823484,113.92,113.91,16.6944006]
[1744280373807,41.1823484,113.92,113.88,24.6944006]
[1744280374016,41.1823484,113.92,113.91,16.6944006]
[1744280375812,41.1823484,113.92,113.88,24.6944006]
[1744280375999,41.1823484,113.92,113.91,16.6944006]
[1744280377394,94.48036157,113.92,113.91,16.6944006]
[1744280377616,175.98036157,113.92,113.9,16.6944006]
[1744280377791,0.5,113.91,113.89,16.6944006]
[1744280377991,176.48036157,113.92,113.9,16.6944006]
[1744280378407,0.5,113.91,113.9,16.6944006]
[1744280378803,18.13841832,113.91,113.9,16.6944006]
[1744280380503,41.6823484,113.91,113.9,16.6944006]
[1744280381613,41.6823484,113.91,113.89,16.6944006]
[1744280381909,41.6823484,113.91,113.87,16.6944006]
[1744280382110,0.5,113.88,113.86,16.6944006]
[1744280382309,0.5,113.88,113.85,0.03]
[1744280382702,0.5,113.88,113.87,16.6944006]
[1744280382900,0.5,113.88,113.86,16.6944006]
[1744280383100,0.5,113.88,113.87,16.6944006]
[1744280383321,0.5,113.88,113.86,16.6944006]
[1744280383710,0.5,113.88,113.87,16.6944006]
[1744280383913,0.5,113.88,113.86,16.6944006]
[1744280384521,81.5,113.87,113.86,16.6944006]
[1744280384711,81.5,113.87,113.85,16.7244006]
[1744280384898,82.0,113.87,113.85,16.7244006]
[1744280385405,82.0,113.86,113.85,0.03]
[1744280385603,0.5,113.86,113.85,0.03]
[1744280386923,0.5,113.87,113.85,16.7244006]
[1744280387224,0.5,113.86,113.85,0.03]
[1744280388025,0.5,113.87,113.85,16.7244006]
[1744280388200,0.5,113.87,113.86,16.6944006]
[1744280388402,0.5,113.87,113.85,16.7244006]
[1744280389116,0.5,113.86,113.85,0.03]
[1744280389322,0.5,113.86,113.85,16.7244006]
[1744280389522,0.5,113.87,113.85,16.7244006]
[1744280390325,0.5,113.87,113.86,16.6944006]
[1744280390533,0.5,113.87,113.85,16.7244006]
[1744280390830,0.5,113.87,113.86,16.6944006]
[1744280391219,82.0,113.89,113.86,16.6944006]
[1744280391412,82.0,113.89,113.85,0.03]
[1744280391413,82.0,113.89,113.88,16.6944006]
[1744280391634,81.5,113.89,113.88,16.6944006]
[1744280392012,82.0,113.89,113.85,0.03]
[1744280392305,81.5,113.89,113.88,16.6944006]
[1744280392510,0.5,113.91,113.88,16.6944006]
[1744280392709,0.5,113.91,113.9,16.6944006]
[1744280392934,0.5,113.91,113.85,6.35212314]
[1744280393527,0.5,113.91,113.89,16.6944006]
[1744280394635,0.5,113.91,113.9,16.6944006]
[1744280395730,0.5,113.91,113.89,16.6944006]
[1744280396113,82.0,113.92,113.9,16.6944006]
[1744280396432,0.5,113.93,113.91,16.6944006]
[1744280396823,0.5,113.94,113.92,16.6944006]
[1744280397025,0.5,113.93,113.92,16.6944006]
[1744280397230,0.5,113.94,113.92,16.6944006]
[1744280399533,0.5,113.94,113.91,16.6944006]
[1744280399729,0.5,113.94,113.92,16.6944006]
[1744280399928,0.5,113.94,113.88,24.8944006]
[1744280400136,6.88465217,113.93,113.88,8.2]
[1744280400438,0.5,113.91,113.88,16.6944006]
[1744280400635,82.0,113.92,113.88,16.6944006]
[1744280400835,0.5,113.91,113.89,16.6944006]
[1744280401334,6.38465217,113.9,113.89,16.6944006]
[1744280404642,0.5,113.91,113.89,16.6944006]
[1744280404846,0.5,113.91,113.9,16.6944006]
[1744280405147,82.0,113.92,113.9,16.6944006]
[1744280405340,0.5,113.91,113.9,16.6944006]
[1744280405523,6.93781647,113.91,113.89,16.6944006]
[1744280406141,6.43781647,113.9,113.89,16.6944006]
[1744280406945,6.43781647,113.9,113.88,16.6944006]
[1744280407150,82.0,113.89,113.85,42.7244006]
[1744280407450,6.43781647,113.88,113.86,16.6944006]
[1744280407644,88.43781647,113.88,113.85,16.7244006]
[1744280408146,0.5,113.87,113.85,0.03]
[1744280408320,0.5,113.86,113.85,0.03]
[1744280408720,23.63221707,113.86,113.85,0.03]
[1744280410225,51.06456593,113.86,113.85,0.03]
[1744280412238,52.93868907,113.86,113.85,0.03]
[1744280413045,17.1944006,113.83,113.82,0.03]
[1744280414661,44.62904946,113.83,113.82,0.03]
[1744280414833,0.5,113.82,113.81,0.03]
[1744280415028,33.8888012,113.82,113.81,0.03]
[1744280415438,32.38265323,113.82,113.81,0.03]
[1744280415648,49.07705383,113.82,113.81,0.03]
[1744280415842,32.38265323,113.82,113.81,0.03]
[1744280416249,67.72670269,113.82,113.81,0.03]
[1744280416551,23.59685323,113.82,113.81,0.03]
[1744280416940,6.90245263,113.82,113.81,0.03]
[1744280417534,0.5,113.82,113.81,0.03]
[1744280421166,17.1944006,113.82,113.81,0.03]
[1744280421776,0.5,113.82,113.81,0.03]
[1744280422971,0.5,113.83,113.81,16.7244006]
[1744280423157,0.5,113.82,113.81,0.03]
[1744280423551,0.5,113.82,113.81,16.7244006]
[1744280423872,0.5,113.83,113.81,16.7244006]
[1744280424074,0.5,113.82,113.81,0.03]
[1744280429854,9.2858,113.82,113.81,0.03]
[1744280430054,44.62984946,113.82,113.81,0.03]
[1744280430271,51.02509095,113.82,113.81,0.03]
[1744280430962,51.30941409,113.82,113.81,0.03]
[1744280431163,51.02509095,113.82,113.81,0.03]
[1744280431367,32.37544209,113.82,113.81,0.03]
[1744280431574,81.47,113.8,113.76,16.6944006]
[1744280431855,0.5,113.77,113.76,16.7244006]
[1744280432061,0.5,113.77,113.76,0.03]
[1744280432373,0.5,113.78,113.76,16.7244006]
[1744280432569,0.5,113.77,113.76,16.7244006]
[1744280433782,0.5,113.77,113.76,0.03]
[1744280434361,17.1944006,113.77,113.76,0.03]
[1744280434761,0.5,113.77,113.76,0.03]
[1744280439388,0.5,113.77,113.76,16.7244006]
[1744280439988,0.5,113.77,113.76,0.03]
[1744280441396,0.5,113.8,113.76,16.7244006]
[1744280441573,81.5,113.79,113.78,16.6944006]
[1744280441774,81.5,113.79,113.76,0.03]
[1744280441976,0.5,113.77,113.76,16.7244006]
[1744280442772,82.0,113.79,113.76,16.7244006]
[1744280442972,0.5,113.78,113.77,16.6944006]
[1744280443384,81.5,113.79,113.77,16.6944006]
[1744280443596,81.5,113.79,113.78,16.6944006]
[1744280443803,82.0,113.79,113.76,0.03]
[1744280444100,82.0,113.79,113.77,16.6944006]
[1744280444599,82.0,113.79,113.78,16.6944006]
[1744280445113,82.0,113.79,113.76,0.03]
[1744280445479,0.5,113.78,113.76,16.7244006]
[1744280446110,82.0,113.79,113.77,16.6944006]
[1744280446404,0.5,113.78,113.76,0.03]
[1744280446789,0.5,113.78,113.76,16.7244006]
[1744280447599,82.0,113.79,113.76,16.7244006]
[1744280447801,0.5,113.78,113.76,16.7244006]
[1744280447993,82.0,113.79,113.76,16.7244006]
[1744280448303,0.5,113.78,113.77,16.6944006]
[1744280448483,82.0,113.79,113.77,16.6944006]
[1744280449191,0.5,113.78,113.77,16.6944006]
[1744280449703,0.5,113.78,113.76,16.7244006]
[1744280450507,0.5,113.78,113.76,0.03]
[1744280450684,82.0,113.77,113.76,0.03]
[1744280451399,81.5,113.77,113.76,0.03]
[1744280451599,82.0,113.77,113.76,0.03]
[1744280451917,81.5,113.77,113.76,0.03]
[1744280452200,0.5,113.77,113.76,0.03]
[1744280452395,6.9259735,113.77,113.76,0.03]
[1744280452598,15.7155735,113.77,113.76,0.03]
[1744280452782,6.9259735,113.77,113.76,0.03]
[1744280456809,32.4099741,113.77,113.76,0.03]
[1744280457008,23.6203741,113.77,113.76,0.03]
[1744280457303,6.9259735,113.77,113.76,0.03]
[1744280457886,6.9259735,113.77,113.76,16.7244006]
[1744280458392,6.9259735,113.77,113.76,0.03]
[1744280458803,6.9259735,113.77,113.76,16.7244006]
[1744280459110,32.4099741,113.77,113.76,0.03]
[1744280459426,15.7155735,113.77,113.76,0.03]
[1744280460511,0.5,113.72,113.71,0.03]
[1744280461014,6.9259735,113.72,113.71,0.03]
[1744280461503,0.5,113.72,113.71,0.03]
[1744280461710,0.5,113.72,113.71,16.7244006]
[1744280462013,0.5,113.72,113.71,0.03]
[1744280463417,0.5,113.72,113.71,16.7244006]
[1744280463796,0.5,113.72,113.71,0.03]
[1744280465013,0.5,113.74,113.71,16.7244006]
[1744280465316,0.5,113.74,113.72,16.6944006]
[1744280465617,0.5,113.74,113.73,16.6944006]
[1744280465811,81.5,113.76,113.73,16.6944006]
[1744280466120,0.5,113.74,113.71,0.03]
[1744280466421,0.5,113.78,113.73,6.0326]
[1744280466604,0.5,113.79,113.73,6.0326]
[1744280467122,0.5,113.78,113.73,6.0326]
[1744280467422,0.5,113.79,113.77,16.6944006]
[1744280467619,0.5,113.79,113.78,16.6944006]
[1744280467919,14.20505655,113.83,113.78,16.6944006]
[1744280468126,14.20505655,113.83,113.82,16.6944006]
[1744280468491,13.70505655,113.83,113.82,16.6944006]
[1744280468800,0.5,113.82,113.81,16.6944006]
[1744280469606,13.70505655,113.83,113.81,16.6944006]
[1744280469809,13.70505655,113.83,113.82,16.6944006]
[1744280471217,0.5,113.82,113.81,16.6944006]
[1744280473304,0.5,113.81,113.8,16.6944006]
[1744280473718,0.5,113.81,113.79,16.6944006]
[1744280473898,0.5,113.8,113.79,16.6944006]
[1744280474700,0.5,113.8,113.76,31.7556006]
[1744280474701,0.5,113.8,113.78,16.6944006]
[1744280475097,0.5,113.81,113.78,16.6944006]
[1744280475295,0.5,113.8,113.79,16.6944006]
[1744280475512,0.5,113.81,113.79,16.6944006]
[1744280475821,0.5,113.82,113.8,16.6944006]
[1744280475990,0.5,113.82,113.81,16.6944006]
[1744280476900,0.5,113.82,113.8,16.6944006]
[1744280477103,0.5,113.82,113.81,16.6944006]
[1744280479631,0.5,113.82,113.76,31.7556006]
[1744280479803,0.5,113.81,113.8,16.6944006]
[1744280480004,22.99005655,113.83,113.8,16.6944006]
[1744280480305,0.5,113.81,113.8,16.6944006]
[1744280480519,0.5,113.8,113.79,16.6944006]
[1744280480906,0.5,113.8,113.78,16.6944006]
[1744280481115,0.5,113.79,113.75,1.6111]
[1744280481432,0.5,113.79,113.78,16.6944006]
[1744280481733,0.5,113.8,113.75,1.6111]
[1744280481904,0.5,113.79,113.78,16.6944006]
[1744280484530,0.5,113.79,113.75,1.6111]
[1744280484829,0.5,113.79,113.78,16.6944006]
[1744280485134,0.5,113.79,113.75,1.6111]
[1744280485516,0.5,113.79,113.78,16.6944006]
[1744280485830,0.5,113.8,113.78,16.6944006]
[1744280486131,0.5,113.79,113.75,1.6111]
[1744280486437,0.5,113.79,113.78,16.6944006]
[1744280487939,0.5,113.8,113.78,16.6944006]
[1744280488138,0.5,113.8,113.79,16.6944006]
[1744280488434,0.5,113.8,113.78,16.6944006]
[1744280488813,0.5,113.79,113.78,16.6944006]
[1744280489522,0.5,113.79,113.75,1.6111]
[1744280489833,0.5,113.79,113.78,16.6944006]
[1744280490338,0.5,113.8,113.78,16.6944006]
[1744280490521,0.5,113.8,113.79,16.6944006]
[1744280491320,0.5,113.79,113.78,16.6944006]
[1744280493531,0.5,113.81,113.78,16.6944006]
[1744280493727,0.5,113.82,113.8,16.6944006]
[1744280494231,0.5,113.82,113.81,16.6944006]
[1744280497145,0.5,113.82,113.77,0.28432314]
[1744280497314,0.5,113.82,113.8,16.6944006]
[1744280497512,0.5,113.81,113.8,16.6944006]
[1744280497816,0.5,113.82,113.8,16.6944006]
[1744280498019,0.5,113.81,113.77,0.28432314]
[1744280498239,0.5,113.82,113.8,16.6944006]
[1744280498534,0.5,113.82,113.81,16.6944006]
[1744280499517,0.5,113.8,113.76,0.28432314]
[1744280499834,0.5,113.8,113.79,16.6944006]
[1744280501415,0.5,113.81,113.79,16.6944006]
[1744280501615,0.5,113.8,113.79,16.6944006]
[1744280502019,0.5,113.81,113.79,16.6944006]
[1744280502341,0.5,113.82,113.8,16.6944006]
[1744280502730,0.5,113.81,113.8,16.6944006]
[1744280503047,0.5,113.81,113.78,16.6944006]
[1744280503225,0.5,113.81,113.75,1.6111]
[1744280503428,0.5,113.8,113.78,10.79168843]
[1744280503637,0.5,113.79,113.77,10.79168843]
[1744280503949,0.5,113.79,113.78,10.79168843]
[1744280504476,0.5,113.79,113.75,1.6111]
[1744280504622,0.5,113.8,113.78,10.79168843]
[1744280504822,0.5,113.79,113.78,10.79168843]
[1744280505420,0.5,113.79,113.78,16.86288518]
[1744280507253,0.5,113.79,113.74,8.36]
[1744280507542,0.5,113.79,113.78,16.86288518]
[1744280508123,0.5,113.81,113.78,16.86288518]
[1744280508335,0.5,113.82,113.8,16.86288518]
[1744280508655,0.5,113.82,113.81,16.86288518]
[1744280509062,6.93075481,113.82,113.81,16.86288518]
[1744280509356,6.43075481,113.82,113.81,16.86288518]
[1744280510241,6.93075481,113.82,113.81,16.86288518]
[1744280510442,6.93075481,113.82,113.76,37.11073404]
[1744280510751,6.93075481,113.82,113.8,16.86288518]
[1744280511161,6.43075481,113.81,113.8,16.86288518]
[1744280518367,6.43075481,113.81,113.77,0.28432314]
[1744280518573,6.93075481,113.81,113.8,16.86288518]
[1744280519369,6.93075481,113.81,113.79,16.86288518]
[1744280519562,6.43075481,113.8,113.79,16.86288518]
[1744280520758,6.93075481,113.8,113.78,16.86288518]
[1744280521070,6.43075481,113.79,113.78,16.86288518]
[1744280521573,6.93075481,113.79,113.73,7.903]
[1744280521776,0.5,113.78,113.75,16.86288518]
[1744280522068,0.5,113.79,113.76,16.86288518]
[1744280522374,0.5,113.78,113.76,16.86288518]
[1744280522878,6.4400352,113.77,113.76,16.86288518]
[1744280524574,0.5,113.78,113.74,0.28432314]
[1744280524772,0.5,113.78,113.77,16.86288518]
[1744280525071,0.5,113.79,113.77,16.86288518]
[1744280525251,0.5,113.78,113.77,16.86288518]
[1744280525446,6.43924735,113.78,113.77,16.86288518]
[1744280526475,6.93924735,113.78,113.77,16.86288518]
[1744280527160,6.43924735,113.78,113.77,16.86288518]
[1744280527362,6.93924735,113.78,113.77,16.86288518]
[1744280527566,6.43924735,113.78,113.77,16.86288518]
[1744280527780,6.93924735,113.78,113.74,0.28432314]
[1744280527957,6.93924735,113.78,113.76,16.86288518]
[1744280528156,0.5,113.78,113.76,16.86288518]
[1744280528465,0.5,113.78,113.74,0.28432314]
[1744280528855,0.5,113.78,113.76,16.86288518]
[1744280529180,0.5,113.75,113.72,8.24]
[1744280529352,0.5,113.75,113.73,16.86288518]
[1744280529983,0.5,113.76,113.73,16.86288518]
[1744280530148,0.5,113.75,113.74,16.86288518]
[1744280530351,0.5,113.75,113.71,0.03]
[1744280530658,0.5,113.75,113.73,16.86288518]
[1744280530861,0.5,113.75,113.74,16.86288518]
[1744280531384,6.93218383,113.75,113.74,16.86288518]
[1744280531979,6.43218383,113.75,113.74,16.86288518]
[1744280532161,6.93218383,113.75,113.74,16.86288518]
[1744280532484,6.43218383,113.75,113.74,16.86288518]
[1744280533080,0.5,113.76,113.74,16.86288518]
[1744280533383,0.5,113.76,113.75,16.86288518]
[1744280533979,82.0,113.78,113.75,16.86288518]
[1744280534169,82.0,113.78,113.76,16.86288518]
[1744280535087,6.4334037,113.77,113.76,16.86288518]
[1744280535785,82.0,113.78,113.76,16.86288518]
[1744280537203,0.5,113.77,113.76,16.86288518]
[1744280537589,0.5,113.77,113.75,16.86288518]
[1744280538698,82.0,113.78,113.73,26.0]
[1744280538897,0.5,113.76,113.74,16.86288518]
[1744280539075,6.93034887,113.75,113.73,16.86288518]
[1744280539278,6.93034887,113.75,113.73,10.80137169]
[1744280539898,6.93034887,113.75,113.74,10.80137169]
[1744280540491,6.93034887,113.75,113.71,0.31432314]
[1744280540698,6.43034887,113.75,113.74,10.80137169]
[1744280541072,82.0,113.78,113.74,10.80137169]
[1744280541288,82.0,113.78,113.76,16.86764984]
[1744280541784,6.4270833,113.77,113.76,16.86764984]
[1744280542586,6.4270833,113.77,113.76,33.73529968]
[1744280542779,0.5,113.8,113.76,33.73529968]
[1744280542992,0.5,113.8,113.79,16.86764984]
[1744280543486,6.92885033,113.8,113.79,16.86764984]
[1744280544700,0.5,113.79,113.78,16.86764984]
[1744280545197,6.92885033,113.79,113.78,16.86764984]
[1744280545498,6.92885033,113.79,113.77,16.86764984]
[1744280545704,0.5,113.78,113.77,16.86764984]
[1744280545896,6.92885033,113.79,113.77,16.86764984]
[1744280546096,6.92885033,113.79,113.78,16.86764984]
[1744280546278,0.5,113.8,113.78,16.86764984]
[1744280546480,0.5,113.78,113.77,16.86764984]
[1744280546998,0.5,113.78,113.76,16.86764984]
[1744280547194,0.5,113.78,113.74,0.28432314]
[1744280547400,0.5,113.78,113.77,16.86764984]
[1744280547991,6.93164025,113.78,113.77,16.86764984]
[1744280548207,0.5,113.76,113.7,51.4151717]
[1744280548502,0.5,113.75,113.73,16.86764984]
[1744280548884,0.5,113.74,113.73,16.86764984]
[1744280549290,0.5,113.74,113.7,0.060173]
[1744280549525,0.5,113.72,113.71,16.89764984]
[1744280549677,0.5,113.74,113.71,16.89764984]
[1744280549881,0.5,113.75,113.73,16.86764984]
[1744280550198,0.5,113.74,113.71,0.03]
[1744280550803,0.5,113.75,113.71,0.03]
[1744280550983,0.5,113.74,113.71,0.03]
[1744280551176,0.5,113.74,113.73,16.86764984]
[1744280551689,6.9318799,113.74,113.73,16.86764984]
[1744280553005,6.4318799,113.74,113.73,16.86764984]
[1744280553300,6.9318799,113.74,113.72,16.86764984]
[1744280553501,6.9318799,113.74,113.71,0.03]
[1744280553502,0.5,113.72,113.71,0.03]
[1744280553701,6.9318799,113.72,113.71,0.03]
[1744280553907,6.4318799,113.72,113.71,16.89764984]
[1744280554505,6.9318799,113.72,113.71,16.89764984]
[1744280554804,6.4318799,113.72,113.71,16.89764984]
[1744280555002,82.0,113.73,113.71,16.89764984]
[1744280555507,0.5,113.72,113.71,16.89764984]
[1744280555911,82.0,113.73,113.71,16.89764984]
[1744280556102,0.5,113.72,113.71,16.89764984]
[1744280557215,0.5,113.72,113.71,0.03]
[1744280562294,0.5,113.72,113.71,10.83795205]
[1744280562717,0.5,113.73,113.71,10.83795205]
[1744280563020,0.5,113.73,113.72,10.80795205]
[1744280565291,0.5,113.75,113.72,16.87295049]
[1744280565490,0.5,113.73,113.72,16.87295049]
[1744280565695,0.5,113.76,113.72,16.87295049]
[1744280565919,0.5,113.76,113.75,16.87295049]
[1744280568089,0.5,113.77,113.75,16.87295049]
[1744280568305,0.5,113.78,113.76,16.87295049]
[1744280568620,0.5,113.78,113.77,16.87295049]
[1744280569011,6.92852965,113.78,113.77,16.87295049]
[1744280570026,6.42852965,113.78,113.77,16.87295049]
[1744280570212,6.92852965,113.78,113.77,16.87295049]
[1744280571733,0.5,113.78,113.77,16.87295049]
[1744280573331,82.0,113.79,113.77,16.87295049]
[1744280573626,0.5,113.79,113.78,16.87295049]
[1744280574615,6.93374144,113.79,113.78,16.87295049]
[1744280574817,0.5,113.76,113.72,18.64964886]
[1744280574998,0.5,113.76,113.75,16.87295049]
[1744280575614,0.5,113.75,113.71,1.5952]
[1744280575904,0.5,113.75,113.74,16.87295049]
[1744280576105,0.5,113.75,113.71,1.5952]
[1744280576330,0.5,113.75,113.74,16.87295049]
[1744280579424,0.5,113.76,113.74,16.87295049]
[1744280579740,0.5,113.76,113.75,16.87295049]
[1744280580709,0.5,113.75,113.71,1.5952]
[1744280580926,0.5,113.75,113.74,16.87295049]
[1744280581522,0.5,113.75,113.71,1.5952]
[1744280581714,0.5,113.75,113.74,16.87295049]
[1744280582736,0.5,113.77,113.74,16.87295049]
[1744280582940,0.5,113.77,113.76,16.87295049]
[1744280583640,0.5,113.78,113.76,16.87295049]
[1744280583808,0.5,113.78,113.77,16.87295049]
[1744280584010,6.92428847,113.78,113.77,16.87295049]
[1744280584938,0.5,113.76,113.73,8.32432314]
[1744280585318,0.5,113.76,113.75,16.87295049]
[1744280586540,0.5,113.77,113.75,16.87295049]
[1744280586716,0.5,113.77,113.76,16.87295049]
[1744280587338,0.5,113.77,113.76,10.79422002]
[1744280588316,0.5,113.78,113.76,10.79422002]
[1744280588519,0.5,113.78,113.77,10.79422002]
[1744280589025,81.563,113.81,113.77,10.79422002]
[1744280589026,0.5,113.8,113.77,10.79422002]
[1744280589232,0.5,113.78,113.76,43.17688008]
[1744280589548,0.5,113.78,113.77,10.79422002]
[1744280590119,0.5,113.8,113.77,11.07854316]
[1744280590323,0.5,113.8,113.79,10.79422002]
[1744280591147,0.563,113.81,113.79,10.79422002]
[1744280591338,0.563,113.81,113.8,10.79422002]
[1744280591538,6.98759932,113.81,113.8,10.79422002]
[1744280593043,6.48759932,113.81,113.8,10.79422002]
[1744280593247,0.063,113.81,113.8,10.79422002]
[1744280593955,0.563,113.81,113.8,10.79422002]
[1744280594328,0.063,113.81,113.8,10.79422002]
[1744280594527,0.563,113.81,113.8,15.21179502]
[1744280595150,0.563,113.81,113.8,4.417575]
[1744280595349,0.563,113.81,113.8,15.21179502]
[1744280595938,0.063,113.81,113.8,15.21179502]
[1744280596751,0.563,113.81,113.8,15.21179502]
[1744280597753,0.063,113.81,113.8,15.21179502]
[1744280598135,0.063,113.81,113.8,4.417575]
[1744280598333,0.563,113.81,113.8,15.21179502]
[1744280599864,0.063,113.81,113.8,15.21179502]
[1744280600039,0.563,113.81,113.8,15.21179502]
[1744280600369,0.063,113.81,113.8,15.49611816]
[1744280601466,0.063,113.81,113.8,22.378275]
[1744280602639,0.063,113.82,113.8,22.378275]
[1744280602849,0.063,113.82,113.81,10.79422002]
[1744280603046,0.063,113.82,113.81,11.07854316]
[1744280603253,0.063,113.82,113.81,54.25542324]
[1744280603461,0.063,113.82,113.81,62.29542324]
[1744280603959,0.563,113.85,113.81,62.29542324]
[1744280604263,0.063,113.85,113.84,10.79422002]
[1744280605649,0.063,113.85,113.84,11.07854316]
[1744280605837,0.063,113.87,113.85,0.28432314]
[1744280606038,0.063,113.87,113.85,11.07854316]
[1744280606434,0.063,113.87,113.85,10.79422002]
[1744280606664,0.563,113.86,113.85,10.79422002]
[1744280607564,0.5,113.84,113.81,8.04]
[1744280607757,0.5,113.84,113.83,10.79422002]
[1744280608264,0.5,113.85,113.83,10.79422002]
[1744280608467,0.5,113.84,113.81,8.04]
[1744280608657,0.5,113.84,113.83,10.79422002]
[1744280612564,0.5,113.85,113.83,10.79422002]
[1744280612864,0.563,113.86,113.84,10.79422002]
[1744280613060,0.563,113.86,113.85,10.79422002]
[1744280613439,0.563,113.86,113.83,0.28432314]
[1744280613643,0.563,113.86,113.85,10.79422002]
[1744280623770,0.063,113.86,113.85,10.79422002]
[1744280624366,0.063,113.87,113.85,37.76819202]
[1744280624541,0.063,113.87,113.86,11.07854316]
[1744280625750,0.063,113.88,113.86,54.25542324]
[1744280625950,0.063,113.88,113.87,54.25542324]
[1744280627761,0.063,113.88,113.87,72.9050721]
[1744280630260,0.063,113.88,113.87,11.07854316]
[1744280631769,0.063,113.88,113.87,10.79422002]
[1744280631962,0.5,113.87,113.85,8.04]
[1744280632154,0.5,113.87,113.86,10.79422002]
[1744280634953,0.5,113.87,113.82,69.84652894]
[1744280635155,0.5,113.85,113.82,51.19688008]
[1744280635350,0.5,113.85,113.84,10.79422002]
[1744280639190,0.5,113.86,113.84,10.79422002]
[1744280639364,0.5,113.86,113.85,10.79422002]
[1744280642688,6.95217748,113.86,113.85,10.79422002]
[1744280650071,6.45217748,113.86,113.85,11.07854316]
[1744280650388,0.063,113.88,113.86,0.28432314]
[1744280650569,0.063,113.88,113.87,10.79422002]
[1744280652490,0.563,113.88,113.87,10.79422002]
[1744280654491,0.063,113.88,113.87,10.79422002]
[1744280654663,0.563,113.88,113.87,10.79422002]
[1744280654876,0.063,113.88,113.87,10.79422002]
[1744280655096,0.563,113.88,113.87,10.79422002]
[1744280655294,0.063,113.88,113.87,10.79422002]
[1744280655469,0.063,113.88,113.87,72.9050721]
[1744280658095,0.063,113.88,113.87,29.72819202]
[1744280658270,0.063,113.88,113.87,72.9050721]
[1744280658993,0.063,113.88,113.87,29.72819202]
[1744280662124,0.063,113.89,113.88,0.28432314]
[1744280662273,0.063,113.89,113.88,18.933972]
[1744280662599,0.063,113.89,113.88,72.9050721]
[1744280666899,0.063,113.89,113.88,54.25542324]
[1744280667875,0.063,113.91,113.88,72.9050721]
[1744280668187,0.063,113.91,113.9,11.07854316]
[1744280669284,0.063,113.91,113.9,29.72819202]
[1744280669802,0.063,113.91,113.9,37.74819202]
[1744280670483,0.063,113.93,113.9,57.74819202]
[1744280670692,0.063,113.93,113.92,29.44386888]
[1744280673509,0.063,113.94,113.93,72.9050721]
[1744280673810,0.063,113.94,113.93,79.90821534]
[1744280674311,0.063,113.94,113.93,36.73133526]
[1744280675798,0.063,113.97,113.95,0.28432314]
[1744280676107,0.063,113.97,113.96,11.07854316]
[1744280676509,0.063,113.97,113.96,29.72819202]
[1744280677287,0.063,113.98,113.97,29.44386888]
[1744280677488,0.063,113.98,113.97,29.72819202]
[1744280679588,0.063,113.98,113.97,10.79422002]
[1744280679803,0.063,113.98,113.97,11.07854316]
[1744280685518,0.063,113.98,113.97,29.72819202]
[1744280685711,0.063,113.99,113.98,0.28432314]
[1744280685909,0.063,113.99,113.98,11.07854316]
[1744280686292,0.063,113.99,113.98,29.72819202]
[1744280687824,0.53,114.03,113.99,18.933972]
[1744280688121,0.53,114.03,114.02,10.79422002]
[1744280688920,0.5,114.01,114.0,10.79422002]
[1744280692526,0.5,114.0,113.98,8.02]
[1744280692706,0.5,114.0,113.97,18.64964886]
[1744280692906,0.5,113.99,113.98,0.28432314]
[1744280693222,0.5,113.99,113.98,11.07854316]
[1744280693625,0.5,113.97,113.95,8.02]
[1744280693833,0.5,113.97,113.96,29.44386888]